[Event "25th Abu Dhabi Open 2018"]
[Site "Abu Dhabi"]
[Date "2018.08.09"]
[Round "3"]
[White "Ammar, Sedrani"]
[Black "Shubham, Shukla"]
[Result "1-0"]
[ECO "A96"]
[WhiteElo "2109"]
[BlackElo "1874"]
[Annotator "NA"]
[PlyCount "143"]
[EventDate "2018.08.05"]
[EventType "swiss"]
[EventCountry "UAE"]
[SourceTitle "playchess.com"]
[Source "ChessBase"]
[SourceQuality "1"]
[TimeControl "5400+30"]

1. d4 f5 2. Nf3 Nf6 3. g3 e6 4. Bg2 Be7 5. O-O O-O 6. c4 d6 7. Nc3 a5 8. Qc2 Nc6 9. Rd1 Qe8 10. a3 e5 11. d5 Nb8 12. b3 Na6 13. Rb1 Qh5 14. b4 h6 15. b5 Nc5 16. Be3 e4 17. Bxc5 dxc5 18. Nd2 e3 19. fxe3 Ng4 20. Nf1 Qg5 21. Qd2 Ne5 22. b6 Nxc4 23. Qa2 Nd6 24. bxc7 Kh8 25. Na4 b5 26. Nxc5 Ra7 27. Nb3 Rxc7 28. Nxa5 Rc3 29. Rd3 Rc5 30. Nb3 Rc7 31. Rc1 Ra7 32. Nd4 Bf6 33. Qb3 Bxd4 34. Rxd4 Qe7 35. a4 Bd7 36. axb5 Bxb5 37. Bf3 Rfa8 38. Rb4 Bd7 39. Rb8+ Kh7 40. Rxa8 Rxa8 41. Rc7 Ra1 42. Kg2 Ne8 43. Rb7 Nf6 44. Qb4 Qe8 45. Rb8 Qe5 46. Qb2 Qxb2 47. Rxb2 g5 48. Kf2 Rd1 49. Rd2 Rb1 50. Rd4 Kg6 51. Nd2 Rb8 52. e4 Re8 53. exf5+ Kxf5 54. e4+ Ke5 55. Ke3 Kd6 56. Nc4+ Kc5 57. Kd3 Bb5 58. Kc3 Nd7 59. Bg4 Rf8 60. d6 Nf6 61. Be6 Bc6 62. Nd2 Bd7 63. Bxd7 Nxd7 64. Rd5+ Kc6 65. Kd4 Nb6 66. Rc5+ Kxd6 67. e5+ Kd7 68. e6+ Ke7 69. Ke5 Rd8 70. Rc7+ Ke8 71. Ne4 Nd5 72. Rh7 1-0

[Event "25th Abu Dhabi Open 2018"]
[Site "Abu Dhabi"]
[Date "2018.08.09"]
[Round "3"]
[White "Tereshechkina, Maya"]
[Black "Huang, Zixiu"]
[Result "0-1"]
[ECO "A09"]
[WhiteElo "2056"]
[BlackElo "1864"]
[Annotator "NA"]
[PlyCount "64"]
[EventDate "2018.08.05"]
[EventType "swiss"]
[EventCountry "UAE"]
[SourceTitle "playchess.com"]
[Source "ChessBase"]
[SourceQuality "1"]
[TimeControl "5400+30"]

1. Nf3 {[%emt 0:00:00]} d5 {[%emt 0:00:00]} 2. c4 {[%emt 0:00:02]} d4 {[%emt 0:00:46]} 3. e3 {[%emt 0:00:47]} c5 {[%emt 0:00:22]} 4. b4 {[%emt 0:02:22]} dxe3 {[%emt 0:05:29]} 5. fxe3 {[%emt 0:00:12]} cxb4 {[%emt 0:00:07]} 6. a3 {[%emt 0:04:06]} e6 {[%emt 0:02:27]} 7. axb4 {[%emt 0:02:12]} Bxb4 {[%emt 0:00:08]} 8. Qa4+ {[%emt 0:07:11]} Nc6 {[%emt 0:00:09]} 9. Nd4 {[%emt 0:01:26]} Nge7 {[%emt 0:01:34]} 10. Be2 {[%emt 0:14:01]} O-O {[%emt 0:02:02]} 11. Nxc6 {[%emt 0:01:46]} Nxc6 {[%emt 0:01:17]} 12. O-O {[%emt 0:00:16]} Bd7 {[%emt 0:02:45]} 13. Bb2 {[%emt 0:05:49]} a5 {[%emt 0:01:37]} 14. Qb3 {[%emt 0:02:07]} Qe7 {[%emt 0:03:57]} 15. Nc3 {[%emt 0:01:22]} f6 {[%emt 0:14:42]} 16. d4 {[%emt 0:01:22]} Rfb8 {[%emt 0:02:16]} 17. Nb5 {[%emt 0:02:30]} Nd8 {[%emt 0:02:49]} 18. Nc7 {[%emt 0:07:54]} Ra7 {[%emt 0:00:10]} 19. Nb5 {[%emt 0:00:04]} Ra6 {[%emt 0:01:54]} 20. d5 {[%emt 0:05:19]} Nf7 {[%emt 0:03:36]} 21. e4 {[%emt 0:13:40]} exd5 {[%emt 0:03:15]} 22. cxd5 {[%emt 0:00:44]} Bxb5 {[%emt 0:00:50]} 23. d6 {[%emt 0:03:48]} Rxd6 {[%emt 0:07:01]} 24. Bxb5 {[%emt 0:00:18]} Rb6 {[%emt 0:00:04]} 25. Kh1 {[%emt 0:02:52]} Rxb5 {[%emt 0:00:15]} 26. Bxf6 {[%emt 0:00:05]} Qe8 {[%emt 0:09:18]} 27. Qg3 {[%emt 0:02:36]} Bf8 {[%emt 0:00:43]} 28. e5 {[%emt 0:00:46]} Qe6 {[%emt 0:01:19]} 29. Rac1 {[%emt 0:01:22]} Kh8 {[%emt 0:00:54]} 30. Rc7 {[%emt 0:00:46]} gxf6 {[%emt 0:00:48]} 31. Rxf7 {[%emt 0:00:48]} Qxf7 {[%emt 0:00:55]} 32. e6 {[%emt 0:00:14]} Qe8 {[%emt 0:00:43]} 0-1

[Event "25th Abu Dhabi Open 2018"]
[Site "Abu Dhabi"]
[Date "2018.08.09"]
[Round "3"]
[White "Loay, Sameer"]
[Black "Majoul, Fadhel"]
[Result "1-0"]
[ECO "A04"]
[WhiteElo "2043"]
[BlackElo "1835"]
[Annotator "NA"]
[PlyCount "123"]
[EventDate "2018.08.05"]
[EventType "swiss"]
[EventCountry "UAE"]
[SourceTitle "playchess.com"]
[Source "ChessBase"]
[SourceQuality "1"]
[TimeControl "5400+30"]

1. Nf3 {[%emt 0:00:00]} f5 {[%emt 0:01:44]} 2. d3 {[%emt 0:00:02]} d5 {[%emt 0:01:52]} 3. c4 {[%emt 0:06:11]} e6 {[%emt 0:00:32]} 4. g3 {[%emt 0:02:04]} Nf6 {[%emt 0:00:32]} 5. Bg2 {[%emt 0:00:07]} Bd6 {[%emt 0:01:40]} 6. cxd5 {[%emt 0:00:10]} exd5 {[%emt 0:00:15]} 7. O-O {[%emt 0:00:11]} O-O {[%emt 0:00:35]} 8. Nc3 {[%emt 0:00:49]} c6 {[%emt 0:00:37]} 9. Qa4 {[%emt 0:02:27]} Na6 {[%emt 0:00:28]} 10. a3 {[%emt 0:13:10]} Nc5 {[%emt 0:00:18]} 11. Qc2 {[%emt 0:00:04]} a5 {[%emt 0:01:22]} 12. Rb1 {[%emt 0:00:05]} Bd7 {[%emt 0:10:15]} 13. b4 {[%emt 0:11:39]} axb4 {[%emt 0:00:10]} 14. axb4 {[%emt 0:00:01]} Na6 {[%emt 0:05:12]} 15. b5 {[%emt 0:00:05]} Nc5 {[%emt 0:00:32]} 16. bxc6 {[%emt 0:00:32]} bxc6 {[%emt 0:00:41]} 17. Be3 {[%emt 0:02:33]} Ne6 {[%emt 0:03:40]} 18. Na4 {[%emt 0:03:47]} Ng4 {[%emt 0:07:45]} 19. Bc5 {[%emt 0:00:54]} Be8 {[%emt 0:07:19]} 20. h3 {[%emt 0:25:14]} Nf6 {[%emt 0:01:26]} 21. Nd4 {[%emt 0:00:11]} Nxd4 {[%emt 0:06:16]} 22. Bxd4 {[%emt 0:00:02]} Rf7 {[%emt 0:09:07]} 23. Nc5 {[%emt 0:02:21]} Bxc5 24. Qxc5 {[%emt 0:01:01]} Rb8 {[%emt 0:10:32]} 25. Rxb8 {[%emt 0:09:17]} Qxb8 {[%emt 0:00:02]} 26. Ra1 {[%emt 0:00:27]} Rb7 {[%emt 0:02:09]} 27. Bxf6 gxf6 {[%emt 0:00:19]} 28. Ra4 {[%emt 0:03:47]} Qe5 {[%emt 0:01:34]} 29. Bf3 {[%emt 0:00:43]} Qe7 {[%emt 0:01:32]} 30. Qc1 {[%emt 0:01:47]} Rb4 {[%emt 0:02:31]} 31. Ra8 {[%emt 0:00:44]} Kg7 {[%emt 0:01:42]} 32. Kg2 {[%emt 0:01:16]} Rb7 {[%emt 0:02:20]} 33. Qf4 {[%emt 0:01:08]} Bg6 {[%emt 0:02:18]} 34. d4 {[%emt 0:01:16]} Qc7 {[%emt 0:00:21]} 35. Qc1 {[%emt 0:01:29]} Qb6 {[%emt 0:00:42]} 36. Rc8 {[%emt 0:00:54]} Qxd4 {[%emt 0:02:03]} 37. Qxc6 {[%emt 0:00:04]} Re7 {[%emt 0:01:48]} 38. e3 {[%emt 0:01:40]} Qe5 {[%emt 0:03:41]} 39. Bxd5 {[%emt 0:02:58]} Be8 {[%emt 0:04:16]} 40. Qa8 {[%emt 0:02:08]} Kh6 {[%emt 0:01:32]} 41. Bf3 {[%emt 0:00:48]} Bf7 {[%emt 0:01:54]} 42. Qc6 {[%emt 0:04:15]} Re8 {[%emt 0:00:44]} 43. Rxe8 {[%emt 0:01:29]} Bxe8 {[%emt 0:00:02]} 44. Qd5 {[%emt 0:00:12]} Qxd5 {[%emt 0:00:19]} 45. Bxd5 {[%emt 0:00:02]} Bh5 {[%emt 0:00:26]} 46. Be6 {[%emt 0:00:15]} f4 {[%emt 0:04:03]} 47. gxf4 {[%emt 0:00:05]} Be2 {[%emt 0:00:31]} 48. Bf5 Kg7 49. e4 {[%emt 0:00:52]} Bd1 {[%emt 0:01:36]} 50. e5 {[%emt 0:00:13]} Bb3 {[%emt 0:00:51]} 51. exf6+ {[%emt 0:02:32]} Kg8 {[%emt 0:02:31]} 52. Kf3 {[%emt 0:00:12]} h6 {[%emt 0:00:11]} 53. Bg6 {[%emt 0:00:26]} Bd1+ {[%emt 0:00:33]} 54. Kg3 {[%emt 0:00:21]} Kf8 {[%emt 0:00:10]} 55. f3 {[%emt 0:00:10]} Kg8 {[%emt 0:00:22]} 56. Kg4 {[%emt 0:00:11]} Kf8 {[%emt 0:00:27]} 57. Kh5 {[%emt 0:00:22]} Bxf3+ {[%emt 0:00:07]} 58. Kxh6 {[%emt 0:00:04]} Bd5 {[%emt 0:00:41]} 59. Kg5 {[%emt 0:00:15]} Bb3 {[%emt 0:00:53]} 60. h4 {[%emt 0:00:05]} Kg8 {[%emt 0:00:03]} 61. h5 {[%emt 0:00:04]} Kh8 {[%emt 0:00:04]} 62. f7 {[%emt 0:00:36]} 1-0

[Event "25th Abu Dhabi Open 2018"]
[Site "Abu Dhabi"]
[Date "2018.08.09"]
[Round "3"]
[White "Soham, Datar"]
[Black "Achuthan, Dylan"]
[Result "1-0"]
[ECO "A35"]
[WhiteElo "2030"]
[BlackElo "1797"]
[Annotator "NA"]
[PlyCount "39"]
[EventDate "2018.08.05"]
[EventType "swiss"]
[EventCountry "UAE"]
[SourceTitle "playchess.com"]
[Source "ChessBase"]
[SourceQuality "1"]
[TimeControl "5400+30"]

1. Nf3 c5 2. c4 Nc6 3. Nc3 Nf6 4. e3 g6 5. d4 cxd4 6. exd4 d5 7. cxd5 Nxd5 8. Qb3 Nxc3 9. Bc4 e6 10. bxc3 Bd7 11. Bd3 Qc7 12. O-O Rc8 13. Qd1 Bg7 14. Qe2 O-O 15. Ng5 Ne7 16. Ba3 Rfe8 17. Ne4 Nd5 18. Rfc1 Nf4 19. Qe3 Nd5 20. Qf3 1-0

[Event "25th Abu Dhabi Open 2018"]
[Site "Abu Dhabi"]
[Date "2018.08.09"]
[Round "3"]
[White "Saif, Malek"]
[Black "Alhasan, Abutalib Z"]
[Result "1-0"]
[ECO "B01"]
[WhiteElo "2024"]
[BlackElo "1797"]
[Annotator "NA"]
[PlyCount "97"]
[EventDate "2018.08.05"]
[EventType "swiss"]
[EventCountry "UAE"]
[SourceTitle "playchess.com"]
[Source "ChessBase"]
[SourceQuality "1"]
[TimeControl "5400+30"]

1. e4 d5 2. exd5 Nf6 3. d4 Nxd5 4. Nf3 Bf5 5. Bd3 Bg6 6. c3 e6 7. O-O Bd6 8. Ne5 Nd7 9. f4 c6 10. Qe2 Bxd3 11. Nxd3 O-O 12. Nd2 Qh4 13. Ne4 Bc7 14. Rf3 N7f6 15. Bd2 Nxe4 16. Qxe4 Nf6 17. Qe2 Qh5 18. Ne5 Bxe5 19. fxe5 Nd5 20. Raf1 Rad8 21. Qe1 Rd7 22. Rh3 Qg6 23. Rg3 Qh5 24. Rff3 Kh8 25. Rg5 Qh6 26. Rh3 Qxh3 27. gxh3 Rfd8 28. Qe4 Ne7 29. Rg4 h6 30. h4 Nf5 31. Rf4 c5 32. Be3 cxd4 33. Bxd4 Kg8 34. Rxf5 exf5 35. Qxf5 Rd5 36. Qg4 R8d7 37. Kf2 a6 38. Kf3 a5 39. Ke4 b5 40. e6 fxe6 41. Qxe6+ Kh7 42. Qxd5 Rxd5 43. Kxd5 Kg6 44. Kc5 Kh5 45. Bf2 Kg4 46. Kxb5 g5 47. hxg5 hxg5 48. c4 Kh3 49. Bg3 1-0

[Event "25th Abu Dhabi Open 2018"]
[Site "Abu Dhabi"]
[Date "2018.08.09"]
[Round "3"]
[White "Mahitosh, Dey"]
[Black "Haase, Pavel"]
[Result "1-0"]
[ECO "C02"]
[WhiteElo "1887"]
[BlackElo "2177"]
[Annotator "NA"]
[PlyCount "147"]
[EventDate "2018.08.05"]
[EventType "swiss"]
[EventCountry "UAE"]
[SourceTitle "playchess.com"]
[Source "ChessBase"]
[SourceQuality "1"]
[TimeControl "5400+30"]

1. e4 {[%emt 0:00:00]} e6 {[%emt 0:00:00]} 2. d4 {[%emt 0:00:00]} d5 {[%emt 0:00:00]} 3. e5 {[%emt 0:00:00]} c5 {[%emt 0:00:00]} 4. c3 {[%emt 0:00:00]} Nc6 {[%emt 0:01:11]} 5. Nf3 {[%emt 0:00:00]} Qb6 {[%emt 0:01:10]} 6. a3 {[%emt 0:00:00]} c4 {[%emt 0:00:17]} 7. Nbd2 {[%emt 0:00:10]} Na5 {[%emt 0:00:53]} 8. g3 {[%emt 0:00:52]} Bd7 {[%emt 0:00:37]} 9. Bg2 {[%emt 0:01:24]} Ne7 {[%emt 0:00:25]} 10. O-O {[%emt 0:00:16]} Nc8 {[%emt 0:05:48]} 11. Re1 {[%emt 0:01:20]} Qc7 {[%emt 0:02:58]} 12. Rb1 {[%emt 0:00:26]} Nb6 {[%emt 0:01:00]} 13. Nf1 {[%emt 0:00:34]} Ba4 {[%emt 0:01:37]} 14. Qe2 {[%emt 0:00:09]} O-O-O {[%emt 0:04:44]} 15. Bg5 {[%emt 0:04:21]} Re8 {[%emt 0:02:31]} 16. Bf4 {[%emt 0:00:38]} h6 {[%emt 0:02:26]} 17. g4 {[%emt 0:00:17]} Be7 {[%emt 0:01:54]} 18. Ne3 {[%emt 0:01:01]} Kb8 {[%emt 0:03:38]} 19. Bg3 {[%emt 0:00:54]} Ka8 {[%emt 0:07:49]} 20. Rf1 {[%emt 0:02:06]} Qd8 {[%emt 0:03:34]} 21. Nd2 {[%emt 0:01:16]} h5 {[%emt 0:11:58]} 22. gxh5 {[%emt 0:01:02]} Rh7 {[%emt 0:13:30]} 23. f4 {[%emt 0:12:36]} Reh8 {[%emt 0:03:24]} 24. Bf3 {[%emt 0:00:51]} g6 {[%emt 0:06:54]} 25. hxg6 {[%emt 0:00:26]} fxg6 {[%emt 0:00:06]} 26. Bg4 {[%emt 0:00:10]} Bd7 {[%emt 0:01:36]} 27. Nf3 {[%emt 0:03:23]} Nb3 {[%emt 0:00:59]} 28. h4 {[%emt 0:03:43]} Nc8 {[%emt 0:02:44]} 29. Qg2 {[%emt 0:01:20]} Rg7 {[%emt 0:00:59]} 30. Rf2 {[%emt 0:00:49]} Qe8 {[%emt 0:01:49]} 31. Rbf1 {[%emt 0:00:35]} Bd8 {[%emt 0:00:24]} 32. Ng5 {[%emt 0:00:15]} Na5 {[%emt 0:02:07]} 33. Qh3 {[%emt 0:00:35]} Re7 {[%emt 0:00:13]} 34. Rh2 {[%emt 0:06:30]} Nb6 {[%emt 0:02:48]} 35. Rff2 {[%emt 0:12:17]} Qg8 {[%emt 0:01:01]} 36. Qg2 {[%emt 0:01:15]} Nc6 {[%emt 0:00:58]} 37. Qh1 {[%emt 0:00:22]} Rg7 {[%emt 0:00:08]} 38. Rh3 {[%emt 0:02:46]} Be7 {[%emt 0:01:17]} 39. Rfh2 {[%emt 0:00:18]} Nd8 {[%emt 0:00:49]} 40. h5 {[%emt 0:00:54]} Bxg5 {[%emt 0:00:44]} 41. fxg5 {[%emt 0:00:14]} gxh5 {[%emt 0:00:05]} 42. Rxh5 {[%emt 0:00:06]} Rxh5 {[%emt 0:00:02]} 43. Rxh5 {[%emt 0:00:06]} Nf7 {[%emt 0:02:49]} 44. Bf4 {[%emt 0:00:10]} Nc8 {[%emt 0:02:32]} 45. Nxd5 {[%emt 0:04:45]} exd5 {[%emt 0:01:03]} 46. Bxd7 {[%emt 0:00:04]} Nxg5 {[%emt 0:00:14]} 47. Rxg5 {[%emt 0:00:17]} Rxg5+ {[%emt 0:00:06]} 48. Bxg5 {[%emt 0:00:06]} Qxg5+ {[%emt 0:00:05]} 49. Qg2 {[%emt 0:00:24]} Qe3+ {[%emt 0:00:32]} 50. Qf2 {[%emt 0:00:21]} Qg5+ {[%emt 0:00:41]} 51. Kh2 {[%emt 0:00:19]} Qh6+ {[%emt 0:00:08]} 52. Bh3 {[%emt 0:00:04]} Ne7 {[%emt 0:00:09]} 53. Qf6 {[%emt 0:00:43]} Qd2+ {[%emt 0:00:26]} 54. Bg2 {[%emt 0:00:33]} a6 {[%emt 0:00:25]} 55. Qxe7 {[%emt 0:01:34]} Qf4+ {[%emt 0:00:18]} 56. Kh3 {[%emt 0:00:03]} Qf5+ {[%emt 0:01:32]} 57. Kg3 {[%emt 0:00:07]} Qg6+ {[%emt 0:00:33]} 58. Kf2 {[%emt 0:00:10]} Qc2+ {[%emt 0:00:46]} 59. Kg3 {[%emt 0:01:14]} Qg6+ {[%emt 0:00:35]} 60. Kh2 {[%emt 0:01:01]} Qh6+ {[%emt 0:02:15]} 61. Bh3 {[%emt 0:00:04]} Qf4+ {[%emt 0:01:26]} 62. Kg2 {[%emt 0:00:04]} Qe4+ {[%emt 0:00:14]} 63. Kg3 {[%emt 0:00:05]} Qe3+ {[%emt 0:03:22]} 64. Kg4 {[%emt 0:01:07]} Qe4+ {[%emt 0:00:26]} 65. Kh5 {[%emt 0:00:41]} Qe2+ {[%emt 0:00:13]} 66. Bg4 {[%emt 0:00:04]} Qxb2 {[%emt 0:00:32]} 67. Qf8+ {[%emt 0:00:32]} Ka7 {[%emt 0:00:04]} 68. e6 {[%emt 0:00:08]} Qh2+ {[%emt 0:00:12]} 69. Kg5 {[%emt 0:00:35]} Qd2+ {[%emt 0:00:14]} 70. Qf4 {[%emt 0:00:04]} Qe1 {[%emt 0:00:14]} 71. Qe5 {[%emt 0:00:30]} Qd2+ {[%emt 0:00:07]} 72. Kg6 {[%emt 0:00:12]} Qc2+ {[%emt 0:00:11]} 73. Bf5 {[%emt 0:00:14]} Qg2+ {[%emt 0:00:09]} 74. Kf7 {[%emt 0:00:05]} 1-0

[Event "25th Abu Dhabi Open 2018"]
[Site "Abu Dhabi"]
[Date "2018.08.09"]
[Round "3"]
[White "Abid, Ali Mujawar"]
[Black "Dimarucut, Francis Erwin"]
[Result "1/2-1/2"]
[ECO "B07"]
[WhiteElo "1880"]
[BlackElo "2116"]
[Annotator "NA"]
[PlyCount "118"]
[EventDate "2018.08.05"]
[EventType "swiss"]
[EventCountry "UAE"]
[SourceTitle "playchess.com"]
[Source "ChessBase"]
[SourceQuality "1"]
[TimeControl "5400+30"]

1. e4 {[%emt 0:04:41]} d6 {[%emt 0:01:02]} 2. d4 {[%emt 0:00:23]} Nf6 {[%emt 0:00:07]} 3. Nc3 {[%emt 0:00:19]} Nbd7 {[%emt 0:00:15]} 4. f4 {[%emt 0:00:29]} e5 {[%emt 0:00:09]} 5. Nf3 {[%emt 0:00:15]} exd4 {[%emt 0:00:14]} 6. Nxd4 {[%emt 0:00:20]} g6 {[%emt 0:00:17]} 7. Bc4 {[%emt 0:01:22]} Bg7 {[%emt 0:00:11]} 8. O-O {[%emt 0:00:58]} O-O {[%emt 0:00:12]} 9. f5 {[%emt 0:02:42]} Ne5 {[%emt 0:00:10]} 10. Be2 {[%emt 0:01:27]} c6 {[%emt 0:01:43]} 11. Kh1 {[%emt 0:05:30]} d5 {[%emt 0:01:27]} 12. exd5 {[%emt 0:06:42]} Nxd5 {[%emt 0:02:16]} 13. Ne4 {[%emt 0:04:25]} b6 {[%emt 0:37:24]} 14. f6 {[%emt 0:06:08]} Nxf6 {[%emt 0:08:29]} 15. Bg5 {[%emt 0:01:03]} Nxe4 {[%emt 0:00:07]} 16. Bxd8 {[%emt 0:01:36]} Rxd8 {[%emt 0:00:02]} 17. Bf3 {[%emt 0:03:49]} Ng5 {[%emt 0:12:31]} 18. Qc1 {[%emt 0:05:25]} Rxd4 {[%emt 0:06:55]} 19. Qxg5 {[%emt 0:00:27]} Be6 {[%emt 0:00:18]} 20. Rad1 {[%emt 0:02:09]} Nxf3 {[%emt 0:03:00]} 21. gxf3 {[%emt 0:00:29]} h6 {[%emt 0:01:45]} 22. Qe3 {[%emt 0:03:48]} Rh4 {[%emt 0:03:14]} 23. Rd6 {[%emt 0:06:24]} Re8 {[%emt 0:02:16]} 24. Rfd1 {[%emt 0:00:56]} Bf6 {[%emt 0:03:30]} 25. b3 {[%emt 0:05:09]} Kf8 {[%emt 0:02:07]} 26. Qf2 {[%emt 0:03:08]} g5 {[%emt 0:02:02]} 27. Rxc6 {[%emt 0:00:48]} Be5 {[%emt 0:00:14]} 28. Qe3 {[%emt 0:03:17]} Bxh2 {[%emt 0:00:25]} 29. Qd3 {[%emt 0:04:16]} Kg7 {[%emt 0:02:32]} 30. Rxe6 {[%emt 0:01:11]} Rxe6 {[%emt 0:00:16]} 31. Kg2 {[%emt 0:00:14]} Bf4 {[%emt 0:00:57]} 32. Rh1 {[%emt 0:00:41]} Rxh1 {[%emt 0:00:38]} 33. Kxh1 {[%emt 0:00:08]} h5 {[%emt 0:01:35]} 34. Kg2 {[%emt 0:01:19]} Rd6 {[%emt 0:00:25]} 35. Qc3+ {[%emt 0:00:41]} Kg6 {[%emt 0:00:10]} 36. Qc8 {[%emt 0:00:59]} Rd2+ {[%emt 0:00:13]} 37. Kf1 {[%emt 0:00:12]} h4 {[%emt 0:00:38]} 38. Qg8+ {[%emt 0:00:21]} Kf6 {[%emt 0:00:13]} 39. Qh8+ {[%emt 0:00:45]} Ke7 {[%emt 0:00:09]} 40. Qc8 {[%emt 0:00:12]} Rh2 {[%emt 0:00:37]} 41. Qb7+ {[%emt 0:00:23]} Kf8 {[%emt 0:00:17]} 42. Qc8+ {[%emt 0:00:13]} Kg7 {[%emt 0:00:17]} 43. Qc3+ {[%emt 0:00:20]} Kg6 {[%emt 0:02:59]} 44. Qd3+ {[%emt 0:00:17]} Kg7 {[%emt 0:00:15]} 45. Qc3+ {[%emt 0:00:06]} Kf8 {[%emt 0:00:53]} 46. Qc8+ {[%emt 0:00:16]} Ke7 {[%emt 0:00:09]} 47. Qb7+ {[%emt 0:00:07]} Kd6 {[%emt 0:01:38]} 48. Qxf7 {[%emt 0:00:56]} h3 {[%emt 0:00:19]} 49. Qxa7 {[%emt 0:01:24]} Rh1+ {[%emt 0:00:15]} 50. Kf2 {[%emt 0:00:36]} h2 {[%emt 0:00:36]} 51. Qxb6+ {[%emt 0:00:10]} Ke7 {[%emt 0:00:39]} 52. Qb7+ {[%emt 0:01:10]} Ke6 {[%emt 0:00:49]} 53. Qc8+ {[%emt 0:00:19]} Ke7 {[%emt 0:00:08]} 54. Qb7+ {[%emt 0:00:06]} Ke6 {[%emt 0:00:13]} 55. Qc8+ {[%emt 0:00:35]} Ke7 {[%emt 0:00:02]} 56. Qb7+ {[%emt 0:00:09]} Ke6 {[%emt 0:00:02]} 57. Qc8+ {[%emt 0:00:45]} Ke7 {[%emt 0:00:01]} 58. Qb7+ {[%emt 0:00:17]} Ke6 {[%emt 0:01:05]} 59. Qc8+ {[%emt 0:00:07]} Ke7 {[%emt 0:00:02]} 1/2-1/2

[Event "25th Abu Dhabi Open 2018"]
[Site "Abu Dhabi"]
[Date "2018.08.09"]
[Round "3"]
[White "Ashraf, Artin"]
[Black "Hallaeva, Bahar"]
[Result "0-1"]
[ECO "A05"]
[WhiteElo "1867"]
[BlackElo "2098"]
[Annotator "NA"]
[PlyCount "126"]
[EventDate "2018.08.05"]
[EventType "swiss"]
[EventCountry "UAE"]
[SourceTitle "playchess.com"]
[Source "ChessBase"]
[SourceQuality "1"]
[TimeControl "5400+30"]

1. Nf3 {[%emt 0:00:00]} Nf6 {[%emt 0:00:00]} 2. c4 {[%emt 0:00:14]} e6 {[%emt 0:00:00]} 3. g3 {[%emt 0:00:24]} b6 {[%emt 0:00:00]} 4. Bg2 {[%emt 0:00:33]} Bb7 {[%emt 0:00:00]} 5. O-O {[%emt 0:00:19]} Be7 {[%emt 0:00:10]} 6. Nc3 {[%emt 0:00:17]} O-O {[%emt 0:00:13]} 7. Re1 {[%emt 0:00:21]} d5 {[%emt 0:17:43]} 8. cxd5 {[%emt 0:00:16]} exd5 {[%emt 0:00:58]} 9. d4 {[%emt 0:00:26]} Na6 {[%emt 0:09:05]} 10. Bf4 {[%emt 0:01:01]} Nh5 {[%emt 0:01:29]} 11. e3 {[%emt 0:19:17]} Nxf4 {[%emt 0:11:09]} 12. exf4 {[%emt 0:07:24]} c6 {[%emt 0:03:40]} 13. Ne5 {[%emt 0:00:31]} Nc7 {[%emt 0:03:09]} 14. Rc1 {[%emt 0:08:51]} f6 {[%emt 0:07:05]} 15. Nd3 {[%emt 0:02:22]} Re8 {[%emt 0:00:34]} 16. Na4 {[%emt 0:08:00]} Bf8 {[%emt 0:01:03]} 17. Qc2 {[%emt 0:09:04]} Nb5 {[%emt 0:04:15]} 18. Nc3 {[%emt 0:05:26]} Nxd4 {[%emt 0:00:43]} 19. Qa4 {[%emt 0:00:11]} Ne6 {[%emt 0:01:10]} 20. f5 {[%emt 0:04:02]} Nc5 {[%emt 0:09:54]} 21. Nxc5 Bxc5 {[%emt 0:00:54]} 22. Rxe8+ {[%emt 0:03:42]} Qxe8 {[%emt 0:00:06]} 23. b4 {[%emt 0:00:17]} Bd4 {[%emt 0:00:57]} 24. Qb3 {[%emt 0:00:18]} Qe5 {[%emt 0:07:31]} 25. b5 {[%emt 0:00:48]} Rd8 {[%emt 0:04:39]} 26. bxc6 {[%emt 0:01:05]} Bxc6 {[%emt 0:00:01]} 27. Nb5 {[%emt 0:01:49]} Bxb5 {[%emt 0:02:51]} 28. Qxb5 {[%emt 0:00:10]} Qxf5 {[%emt 0:00:11]} 29. Qe2 {[%emt 0:00:34]} Qe5 {[%emt 0:00:27]} 30. Qb5 {[%emt 0:00:10]} Qf5 {[%emt 0:01:39]} 31. Qe2 {[%emt 0:00:28]} Bc5 {[%emt 0:01:08]} 32. Rd1 {[%emt 0:00:19]} d4 {[%emt 0:00:02]} 33. Be4 {[%emt 0:00:49]} Qe5 {[%emt 0:01:35]} 34. Qd3 {[%emt 0:01:14]} Qh5 {[%emt 0:00:38]} 35. Kg2 {[%emt 0:00:31]} Kh8 {[%emt 0:00:59]} 36. Re1 {[%emt 0:00:32]} Bb4 {[%emt 0:01:06]} 37. Rb1 {[%emt 0:00:09]} Bc5 {[%emt 0:00:34]} 38. Re1 {[%emt 0:00:22]} a5 {[%emt 0:01:59]} 39. a3 {[%emt 0:00:50]} Rf8 {[%emt 0:00:17]} 40. Bf3 {[%emt 0:00:41]} Qf7 {[%emt 0:00:31]} 41. a4 {[%emt 0:00:19]} Qd7 {[%emt 0:00:40]} 42. Bd1 {[%emt 0:00:37]} Qc6+ {[%emt 0:01:39]} 43. Kg1 {[%emt 0:00:49]} Rd8 {[%emt 0:01:03]} 44. Bc2 {[%emt 0:00:20]} g6 {[%emt 0:00:01]} 45. h4 {[%emt 0:00:33]} Bb4 {[%emt 0:01:33]} 46. Rd1 {[%emt 0:00:47]} Bc3 {[%emt 0:01:39]} 47. Qf1 {[%emt 0:02:34]} Kg7 {[%emt 0:00:44]} 48. Qd3 {[%emt 0:01:07]} Re8 {[%emt 0:00:14]} 49. Bb3 {[%emt 0:00:29]} Re7 {[%emt 0:00:40]} 50. Rf1 {[%emt 0:00:51]} Qc5 {[%emt 0:00:40]} 51. Rb1 {[%emt 0:00:47]} Bb4 {[%emt 0:01:10]} 52. Kg2 {[%emt 0:01:35]} Qc6+ {[%emt 0:00:11]} 53. Kh2 {[%emt 0:00:32]} Qe4 {[%emt 0:00:20]} 54. Qc4 {[%emt 0:03:26]} Qxb1 {[%emt 0:01:40]} 55. Qg8+ {[%emt 0:00:06]} Kh6 {[%emt 0:00:01]} 56. Qf8+ {[%emt 0:01:03]} Rg7 {[%emt 0:02:20]} 57. Qxf6 {[%emt 0:00:28]} Qf5 {[%emt 0:00:06]} 58. Qxd4 {[%emt 0:00:12]} Rd7 {[%emt 0:00:53]} 59. Qe3+ {[%emt 0:00:30]} Kg7 {[%emt 0:00:10]} 60. Be6 {[%emt 0:00:38]} Rd3 {[%emt 0:00:48]} 61. Qxb6 {[%emt 0:00:33]} Qf6 {[%emt 0:00:54]} 62. Qa7+ {[%emt 0:00:30]} Qe7 {[%emt 0:00:17]} 63. Qa6 {[%emt 0:00:05]} Rd6 {[%emt 0:00:05]} 0-1